fUSD/lending_fUSD_20251206
["ID","MTS","AMOUNT","RATE_DAILY","PERIOD"]
[396489764,1764999385853,-215.6,0.0004,120]
[396489765,1764999385890,-298.76,0.0004,120]
[396489766,1764999385928,-500.0,0.00040054,30]
[396489767,1764999385966,-500.0,0.00040054,30]
[396489768,1764999386002,-500.0,0.000402,30]
[396489769,1764999386038,-501.89,0.000402,30]
[396489770,1764999386074,-500.0,0.000402,30]
[396489771,1764999386112,-500.0,0.000402,30]
[396489772,1764999386150,-945.69,0.000402,30]
[396489773,1764999386187,-500.0,0.00040328,30]
[396489774,1764999386223,-500.0,0.00040328,30]
[396489775,1764999386258,-1749.69553766,0.0004039,60]
[396489776,1764999386294,-1950.13744475,0.000405,120]
[396489777,1764999386331,-809.85,0.000405,30]
[396489778,1764999386368,-200.31590389,0.000406,120]
[396489779,1764999386406,-500.0,0.00040602,30]
[396489780,1764999386443,-500.0,0.00040602,30]
[396489781,1764999386482,-3000.0,0.00040666,120]
[396489782,1764999386520,-999.999999,0.00040666,120]
[396489783,1764999386557,-279.38688327,0.00040767,120]
[396489784,1764999386594,-153.66799095,0.000408,60]
[396489785,1764999386634,-500.0,0.00040876,30]
[396489786,1764999386672,-500.0,0.00040876,30]
[396489787,1764999386711,-677.03701453,0.00040898,120]
[396489788,1764999386748,-524.34502849,0.000409,120]
[396489789,1764999386785,-5030.93853401,0.000409,120]
[396489790,1764999386822,-352.29712831,0.000409,120]
[396489791,1764999386860,-159.67748641,0.000409,120]
[396489792,1764999386901,-209.0,0.0004093,30]
[396489793,1764999386943,-862.389,0.00040979,59]
[396489794,1764999386982,-449.00315008,0.00040998,120]
[396489795,1764999387022,-50000.0,0.00041,41]
[396489796,1764999387059,-164967.95957799,0.00041,30]
[396489797,1764999387096,-321290.81768859,0.00041,30]
[396489798,1764999387132,-152.39046046,0.00041,120]
[396489799,1764999387168,-510.34898603,0.00041,30]
[396489800,1764999387204,-3007.78940111,0.00041,120]
[396489801,1764999387240,-1568.77392323,0.00041,30]
[396489802,1764999387274,-1600.62447559,0.00041,120]
[396489803,1764999387310,-160.81680809,0.00041,60]
[396489804,1764999387346,-1130.72622471,0.00041,120]
[396489805,1764999387382,-1002.1689198,0.00041,120]
[396489806,1764999387416,-1405.0,0.00041,120]
[396489807,1764999387451,-986.3080071,0.00041,30]
[396489808,1764999387487,-168.0,0.00041,30]
[396489809,1764999387521,-506.0,0.00041,30]
[396489810,1764999387756,-330.08582832,0.00041,120]
[396489811,1764999387796,-150.71,0.00041,120]
[396489812,1764999387838,-195.21805082,0.00041,30]
[396489813,1764999387874,-409.55181692,0.00041,30]
[396489814,1764999387910,-156.0,0.00041,90]
[396489815,1764999387944,-1000.0,0.00041,120]
[396489816,1764999387980,-1000.0,0.00041,120]
[396489817,1764999388014,-1000.0,0.00041,120]
[396489818,1764999388049,-1000.0,0.00041,120]
[396489819,1764999388084,-495.85,0.00041095,30]
[396489820,1764999388119,-495.85,0.00041095,30]
[396489821,1764999388155,-495.85,0.00041095,30]
[396489822,1764999388190,-495.85,0.00041095,30]
[396489823,1764999388225,-495.85,0.00041095,30]
[396489824,1764999388259,-495.85,0.00041095,30]
[396489825,1764999388295,-495.85,0.00041095,30]
[396489826,1764999388330,-495.85,0.00041095,30]
[396489827,1764999388364,-495.85,0.00041095,30]
[396489828,1764999388399,-495.85,0.00041095,30]
[396489829,1764999388433,-495.85,0.00041095,30]
[396489830,1764999388468,-495.85,0.00041095,30]
[396489831,1764999388504,-495.85,0.00041095,30]
[396489832,1764999388544,-495.85,0.00041095,30]
[396489833,1764999388581,-495.85,0.00041095,30]
[396489834,1764999388618,-495.85,0.00041095,30]
[396489835,1764999388656,-495.85,0.00041095,30]
[396489836,1764999388692,-495.85,0.00041095,30]
[396489837,1764999388730,-495.85,0.00041095,30]
[396489838,1764999388766,-495.85,0.00041095,30]
[396489839,1764999388804,-495.85,0.00041095,30]
[396489840,1764999388845,-495.85,0.00041095,30]
[396489841,1764999388891,-495.85,0.00041095,30]
[396489842,1764999388928,-496.04370281,0.00041095,30]
[396489843,1764999388964,-503.47,0.00041096,120]
[396489844,1764999389002,-335.4,0.00041096,120]
[396489845,1764999389040,-500.0,0.00041096,120]
[396489846,1764999389076,-500.0,0.00041096,120]
[396489847,1764999389112,-500.0,0.00041096,120]
[396489848,1764999389148,-500.0,0.00041096,120]
[396489849,1764999389184,-268.24267404,0.00041096,120]
[396489850,1764999389220,-534.0,0.00041096,120]
[396489851,1764999389255,-534.0,0.00041096,120]
[396489852,1764999389291,-534.0,0.00041096,120]
[396489853,1764999389328,-534.0,0.00041096,120]
[396489854,1764999389366,-534.0,0.00041096,120]
[396489855,1764999389403,-534.0,0.00041096,120]
[396489856,1764999389439,-534.0,0.00041096,120]
[396489857,1764999389475,-534.0,0.00041096,120]
[396489858,1764999389511,-534.0,0.00041096,120]
[396489859,1764999389548,-534.0,0.00041096,120]
[396489860,1764999389585,-534.0,0.00041096,120]
[396489861,1764999389620,-534.0,0.00041096,120]
[396489862,1764999389656,-534.0,0.00041096,120]
[396489863,1764999389692,-534.0,0.00041096,120]
[396489864,1764999389730,-534.0,0.00041096,120]
[396489865,1764999389768,-534.0,0.00041096,120]
[396489866,1764999389809,-534.0,0.00041096,120]
[396489867,1764999389847,-534.0,0.00041096,120]
[396489868,1764999389886,-534.0,0.00041096,120]
[396489869,1764999389926,-534.0,0.00041096,120]
[396489870,1764999389969,-534.0,0.00041096,120]
[396489871,1764999390007,-534.0,0.00041096,120]
[396489872,1764999390043,-534.0,0.00041096,120]
[396489873,1764999390080,-542.01516735,0.00041096,120]
[396489874,1764999390118,-500.0,0.0004115,30]
[396489875,1764999390155,-942.52,0.0004115,30]
[396489876,1764999390191,-310.96289016,0.0004118,60]
[396489877,1764999390227,-500.0,0.000412,120]
[396489878,1764999390263,-501.37,0.000412,120]
[396489879,1764999390298,-475.0,0.00041223,30]
[396489880,1764999390332,-24839.5512716,0.00041225,120]
[396489881,1764999390367,-155.26937122,0.0004125,58]
[396489882,1764999390402,-155.26937122,0.0004125,58]
[396489883,1764999390436,-155.26937122,0.0004125,58]
[396489884,1764999390473,-155.26937122,0.0004125,58]
[396489885,1764999390510,-155.26937122,0.0004125,58]
[396489886,1764999390546,-275.19052891,0.0004142,120]
[396489887,1764999390583,-500.0,0.00041424,30]
[396489888,1764999390617,-219.97932676,0.00041473,120]
[396489889,1764999390654,-475.0,0.00041497,30]
[396489890,1764999390690,-189.3202904,0.000415,120]
[396489891,1764999390728,-503.66,0.000415,120]
[396489892,1764999390764,-1500.0,0.00041658,30]
[396489893,1764999390802,-1500.0,0.00041658,30]
[396489894,1764999390843,-1500.0,0.00041658,30]
[396489895,1764999390883,-1500.0,0.00041658,30]
[396489896,1764999390920,-1500.0,0.00041658,30]
[396489897,1764999390956,-1500.0,0.00041658,30]
[396489898,1764999390991,-1500.0,0.00041658,30]
[396489899,1764999391027,-1500.0,0.00041658,30]
[396489900,1764999391062,-1500.0,0.00041658,30]
[396489901,1764999391099,-1500.0,0.00041658,30]
[396489902,1764999391134,-1500.0,0.00041658,30]
[396489903,1764999391175,-1500.0,0.00041658,30]
[396489904,1764999391213,-1500.0,0.00041658,30]
[396489905,1764999391250,-1500.0,0.00041658,30]
[396489906,1764999391289,-500.0,0.00041698,30]
[396489907,1764999391327,-475.0,0.00041771,30]
[396489908,1764999391364,-71258.58458627,0.00041777,60]
[396489909,1764999391402,-192.83,0.000418,30]
[396489910,1764999391441,-738.0,0.000418,120]
[396489911,1764999391479,-200.0,0.00041887,120]
[396489912,1764999391721,-3019.84113059,0.0004189,30]
[396489913,1764999391767,-200.0,0.00041917,120]
[396489914,1764999391809,-200.0,0.00041917,120]
[396489915,1764999391849,-500.0,0.00041972,30]
[396489916,1764999391887,-358.79639411,0.0004199,120]
[396489917,1764999391927,-500.0,0.00041999,30]
[396489918,1764999391966,-500.0,0.00041999,30]
[396489919,1764999392004,-383.03293186,0.00041999,120]
[396489920,1764999392045,-50000.0,0.00042,42]
[396489921,1764999392085,-20911.3152,0.00042,30]
[396489922,1764999392123,-331.65423524,0.00042,120]
[396489923,1764999392162,-446.87253886,0.00042,120]
[396489924,1764999392200,-406.68691965,0.00042,120]
[396489925,1764999392236,-1156.20536036,0.00042,30]
[396489926,1764999392277,-1500.0,0.00042,120]
[396489927,1764999392316,-200.0,0.00042,120]
[396489928,1764999392356,-2649.3305874,0.00042,120]
[396489929,1764999392394,-500.0,0.00042,120]
[396489930,1764999392432,-5956.52,0.00042,30]
[396489931,1764999392473,-475.0,0.00042045,30]
[396489932,1764999392512,-2121.48866555,0.00042121,120]
[396489933,1764999392551,-200.0,0.00042173,120]
[396489934,1764999392590,-150.05,0.00042198,30]
[396489935,1764999392631,-50000.0,0.00042209,32]
[396489936,1764999392674,-50000.0,0.00042209,33]
[396489937,1764999392715,-50000.0,0.00042209,34]
[396489938,1764999392757,-50000.0,0.00042209,35]
[396489939,1764999392801,-50000.0,0.00042209,36]
[396489940,1764999392846,-50000.0,0.00042209,37]
[396489941,1764999392887,-50000.0,0.00042209,38]
[396489942,1764999392927,-50000.0,0.00042209,39]
[396489943,1764999392967,-50000.0,0.00042209,30]
[396489944,1764999393007,-50000.0,0.00042209,31]
[396489945,1764999393104,-475.0,0.00042319,30]
[396489946,1764999393147,-50000.0,0.000425,42]
[396489947,1764999393189,-3857.7,0.000425,120]
[396489948,1764999393231,-150.0,0.00042575,120]
[396489949,1764999393270,-475.0,0.00042593,30]
[396489950,1764999393311,-243.54455855,0.0004274,30]
[396489951,1764999393350,-1199.10613188,0.000428,120]
[396489952,1764999393389,-454.18884118,0.000428,120]
[396489953,1764999393428,-475.0,0.00042867,30]
[396489954,1764999393468,-200.0,0.00042947,120]
[396489955,1764999393509,-209.0,0.0004295,30]
[396489956,1764999393552,-3027.16174184,0.00043,120]
[396489957,1764999393590,-388.22136084,0.00043,120]
[396489958,1764999393628,-216.84806084,0.00043,120]
[396489959,1764999393670,-798.06154694,0.00043,120]
[396489960,1764999393709,-1684.28404261,0.00043,120]
[396489961,1764999393748,-199.61439034,0.00043,120]
[396489962,1764999393789,-1236.69732772,0.00043,120]
[396489963,1764999393830,-168.74324188,0.00043,120]
[396489964,1764999393868,-204.25,0.00043014,120]
[396489965,1764999393907,-724.89041974,0.000431,120]
[396489966,1764999393945,-475.0,0.00043141,30]
[396489967,1764999393981,-1596.39577983,0.000432,120]
[396489968,1764999394019,-512.4779341,0.000432,120]
[396489969,1764999394055,-940.3725,0.0004322,30]
[396489970,1764999394092,-211.0,0.000434,120]
[396489971,1764999394128,-475.0,0.00043415,30]
[396489972,1764999394165,-601.0,0.0004355,120]
[396489973,1764999394202,-1000.0,0.00043562,30]
[396489974,1764999394239,-1119.0,0.00043562,30]
[396489975,1764999394276,-475.0,0.00043688,30]
[396489976,1764999394314,-2113.97665671,0.000437,120]
[396489977,1764999394352,-500.61589745,0.000438,30]
[396489978,1764999394390,-1364.49474595,0.000438,30]
[396489979,1764999394427,-934.30122293,0.000438,120]
[396489980,1764999394463,-522.0,0.000438,120]
[396489981,1764999394500,-500.0,0.00043835,120]
[396489982,1764999394540,-150.0,0.00043871,120]
[396489983,1764999394578,-475.0,0.00043962,30]
[396489984,1764999394616,-1080.08,0.00043997,120]
[396489985,1764999394653,-250.0,0.00044,120]
[396489986,1764999394691,-2019.37481301,0.00044,60]
[396489987,1764999394728,-500.0,0.00044,120]
[396489988,1764999394765,-2066.9737829,0.00044,120]
[396489989,1764999394802,-1334.78936198,0.00044,120]
[396489990,1764999394845,-461.92230739,0.00044,120]
[396489991,1764999394884,-311.16860887,0.00044,120]
[396489992,1764999394925,-200.0,0.00044,120]
[396489993,1764999394963,-5618.49981633,0.00044,120]
[396489994,1764999394999,-151.0,0.00044,120]
[396489995,1764999395037,-186.0,0.00044,120]
[396489996,1764999395074,-1453.61,0.00044,120]
[396489997,1764999395111,-312.386019,0.00044,57]
[396489998,1764999395147,-200.0,0.00044008,120]
[396489999,1764999395183,-175672.77442594,0.000442,30]
[396490000,1764999395219,-12357.7339679,0.0004425,120]
[396490001,1764999395255,-158.69706705,0.0004425,120]
[396490002,1764999395291,-535.08317,0.0004425,120]
[396490003,1764999395327,-1233.86028464,0.000445,120]
[396490004,1764999395366,-151.0,0.000445,120]
[396490005,1764999395405,-186.0,0.000445,120]
[396490006,1764999395443,-475.0,0.0004451,30]
[396490007,1764999395480,-2033.70672126,0.0004489,120]
[396490008,1764999395518,-2564.10727058,0.000449,30]
[396490009,1764999395557,-1019.0,0.000449,120]
[396490010,1764999395594,-209.0,0.0004496,30]
[396490011,1764999395633,-50000.0,0.00045,45]
[396490012,1764999395670,-500.0,0.00045,120]
[396490013,1764999395903,-1324.19155466,0.00045,60]
[396490014,1764999395941,-512.95244739,0.00045,120]
[396490015,1764999395977,-1127.00463007,0.00045,32]
[396490016,1764999396014,-765.94077351,0.00045,120]
[396490017,1764999396050,-348.44302312,0.00045,120]
[396490018,1764999396087,-2000.0,0.00045,120]
[396490019,1764999396124,-244.0,0.00045,120]
[396490020,1764999396160,-1003.0,0.00045,120]
[396490021,1764999396196,-2652.78009289,0.00045,120]
[396490022,1764999396231,-646.0,0.00045,120]
[396490023,1764999396268,-150.0,0.00045,120]
[396490024,1764999396303,-157.9,0.00045,85]
[396490025,1764999396338,-300.0,0.00045,120]
[396490026,1764999396374,-1000.0,0.00045,120]
[396490027,1764999396409,-150.0,0.00045,90]
[396490028,1764999396444,-228.37,0.00045,30]
[396490029,1764999396490,-2860.41,0.00045,120]
[396490030,1764999396531,-437.59672262,0.00045,120]
[396490031,1764999396569,-1855.11,0.00045,120]
[396490032,1764999396607,-1183.33,0.00045,120]
[396490033,1764999396648,-1524.28886932,0.00045,120]
[396490034,1764999396688,-211.0,0.00045,30]
[396490035,1764999396728,-5956.52,0.00045,30]
[396490036,1764999396776,-151.0,0.00045,120]
[396490037,1764999396816,-186.0,0.00045,120]
[396490038,1764999396855,-150.0,0.00045,120]
[396490039,1764999396893,-1434.67053098,0.00045,120]
[396490040,1764999396932,-314.956578,0.00045,120]
[396490041,1764999396971,-234.0,0.00045,36]
[396490042,1764999397010,-420.0,0.00045,120]
[396490043,1764999397049,-150.0,0.00045,120]
[396490044,1764999397087,-300.0,0.00045,120]
[396490045,1764999397129,-150.0,0.00045,120]
[396490046,1764999397169,-1686.65075264,0.00045,120]
[396490047,1764999397214,-150.0,0.00045,120]
[396490048,1764999397253,-475.0,0.00045058,30]
[396490049,1764999397294,-200.0,0.00045069,120]
[396490050,1764999397335,-390.0,0.000453,120]
[396490051,1764999397373,-1344.5,0.00045361,120]
[396490052,1764999397412,-399547.0052,0.00045444,30]
[396490053,1764999397451,-1006.94536301,0.000455,120]
[396490054,1764999397489,-151.0,0.000455,120]
[396490055,1764999397526,-186.0,0.000455,120]
[396490056,1764999397564,-475.0,0.00045606,30]
[396490057,1764999397604,-1220.01065075,0.000457,120]
[396490058,1764999397642,-390.0,0.000458,120]
[396490059,1764999397681,-185.0819597,0.0004589,120]
[396490060,1764999397719,-151.0,0.000459,120]
[396490061,1764999397760,-500.0,0.00046,120]
[396490062,1764999397799,-226.77768077,0.00046,120]
[396490063,1764999397844,-1000.0,0.00046,30]
[396490064,1764999397882,-204.64047787,0.00046,30]
[396490065,1764999397920,-345.60815104,0.00046,120]
[396490066,1764999397957,-1419.98556246,0.00046,90]
[396490067,1764999397994,-800.4197617,0.00046,120]
[396490068,1764999398031,-2199.51509963,0.00046,120]
[396490069,1764999398070,-300.0,0.00046,60]
[396490070,1764999398110,-200.0,0.00046,120]
[396490071,1764999398150,-150.0,0.00046,120]
[396490072,1764999398189,-312.216,0.00046,120]
[396490073,1764999398228,-169.45071891,0.00046,120]
[396490074,1764999398269,-5572.0206552,0.00046,120]
[396490075,1764999398308,-498.22350262,0.00046,120]
[396490076,1764999398347,-4500.0,0.00046,120]
[396490077,1764999398389,-1206.60070311,0.00046,120]
[396490078,1764999398429,-186.0,0.00046,120]
[396490079,1764999398467,-997.0,0.00046,120]
[396490080,1764999398505,-216.19105958,0.00046,30]
[396490081,1764999398543,-771.2849507,0.00046,120]
[396490082,1764999398580,-200.0,0.00046129,120]
[396490083,1764999398617,-475.0,0.00046154,30]
[396490084,1764999398655,-706.0,0.0004622,120]
[396490085,1764999398694,-1889.0,0.000463,120]
[396490086,1764999398734,-151.0,0.000464,120]
[396490087,1764999398773,-186.0,0.000465,120]
[396490088,1764999398815,-700.0,0.0004655,120]
[396490089,1764999398856,-1000.0,0.00046575,30]
[396490090,1764999398897,-500.0,0.00046575,31]
[396490091,1764999398939,-475.0,0.00046702,30]
[396490092,1764999398977,-1367.03383673,0.000468,120]
[396490093,1764999399015,-923.6455082,0.000468,120]
[396490094,1764999399052,-350.0,0.000468,120]
[396490095,1764999399091,-1000.0,0.00046849,30]
[396490096,1764999399128,-1064.9762585,0.000469,120]
[396490097,1764999399168,-2827.42,0.000469,120]
[396490098,1764999399207,-2000.0,0.000469,120]
[396490099,1764999399246,-151.0,0.000469,120]
[396490100,1764999399285,-219.97932676,0.00046952,120]
[396490101,1764999399325,-209.0,0.0004698,30]
[396490102,1764999399364,-1293.95,0.00047,120]
[396490103,1764999399404,-500.0,0.00047,120]
[396490104,1764999399443,-500.0,0.00047,120]
[396490105,1764999399481,-615.99316443,0.00047,30]
[396490106,1764999399520,-150.0,0.00047,120]
[396490107,1764999399560,-266.89546816,0.00047,120]
[396490108,1764999399599,-181.79732419,0.00047,120]
[396490109,1764999399637,-14530.42109068,0.00047,30]
[396490110,1764999399676,-186.0,0.00047,120]
[396490111,1764999399716,-1000.0,0.00047123,30]
[396490112,1764999399754,-200.0,0.0004719,120]
[396490113,1764999399792,-289.33086832,0.00047203,120]
[396490114,1764999399833,-475.0,0.0004725,30]
[396490115,1764999399872,-1000.0,0.00047397,30]
[396490116,1764999399911,-151.0,0.000474,120]
[396490117,1764999400184,-186.0,0.000474,120]
[396490118,1764999400225,-50000.0,0.000475,48]
[396490119,1764999400262,-392.3626262,0.000475,120]
[396490120,1764999400299,-1000.0,0.00047671,30]
[396490121,1764999400336,-3852.29123491,0.00047777,120]
[396490122,1764999400373,-475.0,0.00047798,30]
[396490123,1764999400410,-2219.70361265,0.0004789,60]
[396490124,1764999400446,-151.0,0.000479,120]
[396490125,1764999400484,-186.0,0.000479,120]
[396490126,1764999400521,-1000.0,0.00047945,30]
[396490127,1764999400562,-39575.81455744,0.0004799,30]
[396490128,1764999400602,-500.0,0.00048,120]
[396490129,1764999400641,-519.50761176,0.00048,120]
[396490130,1764999400679,-1603.14168711,0.00048,120]
[396490131,1764999400717,-442.89761467,0.00048,120]
[396490132,1764999400755,-856.50601187,0.00048,120]
[396490133,1764999400794,-585.71526881,0.00048,120]
[396490134,1764999400835,-315.6910548,0.00048,120]
[396490135,1764999400872,-2888.8290426,0.00048,120]
[396490136,1764999400911,-200.0,0.00048,120]
[396490137,1764999400950,-555.0,0.00048,30]
[396490138,1764999400986,-192.7222,0.00048,120]
[396490139,1764999401026,-150.0,0.00048,120]
[396490140,1764999401064,-281.30465738,0.00048,120]
[396490141,1764999401103,-1818.57125934,0.00048,120]
[396490142,1764999401140,-163.2596583,0.00048,120]
[396490143,1764999401177,-183.0699366,0.00048,120]
[396490144,1764999401213,-771.2849507,0.00048,120]
[396490145,1764999401252,-700.0,0.00048,120]
[396490146,1764999401289,-150.0,0.00048,120]
[396490147,1764999401328,-500.0,0.00048,120]
[396490148,1764999401363,-150.0,0.00048,120]
[396490149,1764999401398,-150.0,0.00048,120]
[396490150,1764999401433,-1690.0,0.000481,120]
[396490151,1764999401471,-1000.0,0.00048219,30]
[396490152,1764999401506,-511.34187252,0.0004825,120]
[396490153,1764999401542,-200.0,0.00048251,120]
[396490154,1764999401580,-1276.58864856,0.00048252,120]
[396490155,1764999401615,-475.0,0.00048346,30]
[396490156,1764999401651,-151.0,0.000484,120]
[396490157,1764999401689,-186.0,0.000484,120]
[396490158,1764999401726,-1000.0,0.00048493,30]
[396490159,1764999401764,-178.58636054,0.000485,120]
[396490160,1764999401802,-570.45324086,0.000487,120]
[396490161,1764999401845,-1000.0,0.00048767,30]
[396490162,1764999401884,-1443.78977213,0.000488,120]
[396490163,1764999401924,-83392.19021651,0.000488,120]
[396490164,1764999401962,-1080.08,0.00048832,120]
[396490165,1764999402000,-1213.89067175,0.00048875,60]
[396490166,1764999402038,-475.0,0.00048894,30]
[396490167,1764999402076,-662.8582078,0.000489,120]
[396490168,1764999402114,-1200.98617107,0.000489,120]
[396490169,1764999402154,-151.0,0.000489,120]
[396490170,1764999402193,-186.0,0.000489,120]
[396490171,1764999402231,-209.0,0.0004899,30]
[396490172,1764999402270,-500.0,0.00049,120]
[396490173,1764999402309,-1048.0344034,0.00049,120]
[396490174,1764999402350,-789.60178169,0.00049,30]
[396490175,1764999402391,-424.28665341,0.00049,30]
[396490176,1764999402428,-363.04990399,0.00049,120]
[396490177,1764999402468,-739.78800672,0.00049,120]
[396490178,1764999402505,-2660.0,0.00049,120]
[396490179,1764999402543,-97152.8336085,0.00049,120]
[396490180,1764999402582,-500000.0,0.00049,120]
[396490181,1764999402619,-2232.0,0.00049,120]
[396490182,1764999402657,-223.75204572,0.00049,120]
[396490183,1764999402696,-150.0,0.00049,120]
[396490184,1764999402733,-2500.0,0.00049,120]
[396490185,1764999402770,-5945.13055791,0.00049,120]
[396490186,1764999402811,-73715.666495,0.00049,120]
[396490187,1764999402852,-1220.18533118,0.00049,120]
[396490188,1764999402891,-1000.0,0.00049041,30]
[396490189,1764999402930,-151.0,0.000493,120]
[396490190,1764999402968,-235.256136,0.00049311,120]
[396490191,1764999403005,-160.32648473,0.00049315,60]
[396490192,1764999403043,-1733.00292344,0.00049315,120]
[396490193,1764999403086,-640.23572269,0.00049315,120]
[396490194,1764999403130,-697.62,0.00049315,120]
[396490195,1764999403168,-697.62,0.00049315,120]
[396490196,1764999403208,-697.62,0.00049315,120]
[396490197,1764999403248,-697.62,0.00049315,120]
[396490198,1764999403284,-697.62,0.00049315,120]
[396490199,1764999403322,-697.62,0.00049315,120]
[396490200,1764999403359,-697.62,0.00049315,120]
[396490201,1764999403395,-697.62,0.00049315,120]
[396490202,1764999403431,-697.62,0.00049315,120]
[396490203,1764999403467,-697.62,0.00049315,120]
[396490204,1764999403505,-697.62,0.00049315,120]
[396490205,1764999403540,-697.62,0.00049315,120]
[396490206,1764999403577,-697.62,0.00049315,120]
[396490207,1764999403615,-697.62,0.00049315,120]
[396490208,1764999403653,-697.62,0.00049315,120]
[396490209,1764999403691,-697.62,0.00049315,120]
[396490210,1764999403730,-697.62,0.00049315,120]
[396490211,1764999403767,-697.62,0.00049315,120]
[396490212,1764999403803,-697.62,0.00049315,120]
[396490213,1764999403843,-697.62,0.00049315,120]
[396490214,1764999403880,-697.62,0.00049315,120]
[396490215,1764999403917,-697.62,0.00049315,120]
[396490216,1764999403956,-697.62,0.00049315,120]
[396490217,1764999403992,-697.80202584,0.00049315,120]
[396490218,1764999404029,-1000.0,0.00049315,30]
[396490219,1764999404294,-186.0,0.000494,120]
[396490220,1764999404334,-475.0,0.00049442,30]
[396490221,1764999404373,-399547.0052,0.00049444,30]
[396490222,1764999404410,-399.9289179,0.000495,120]
[396490223,1764999404448,-310.0,0.000495,120]
[396490224,1764999404487,-1000.0,0.00049589,30]
[396490225,1764999404523,-1344.5,0.0004968,120]
[396490226,1764999404561,-1173.50774439,0.000498,30]
[396490227,1764999404597,-2526.43944149,0.000498,120]
[396490228,1764999404632,-79129.92313358,0.000498,30]
[396490229,1764999411412,1221.44,0.00014959,2]
[396490236,1764999551637,10000.01,0.00014871,2]
[396490237,1764999551666,10000.01,0.00014871,2]
[396490238,1764999551690,10000.01,0.00014871,2]
[396490239,1764999551714,5900.87,0.00014871,2]
[396490247,1764999682847,172.18,0.00011751,2]
[396490248,1764999683013,172.18,0.00012926,2]
[396490249,1764999683234,172.18,0.00014101,2]
[396490250,1764999715650,-599.84550004,0.00015121,2]
[396490251,1764999715680,-276.0,0.00015121,2]
[396490252,1764999715708,-195.0,0.00015123,2]
[396490253,1764999715737,-301.75478192,0.00015123,2]
[396490254,1764999715766,-193.0,0.00015124,2]
[396490255,1764999715796,-300.0,0.00015127,2]
[396490256,1764999715826,-250.0,0.00015134,2]
[396490257,1764999715855,-195.0,0.00015134,2]
[396490258,1764999715883,-300.0,0.00015144,2]
[396490259,1764999716268,-300.0,0.00015147,2]
[396490260,1764999716301,-250.0,0.00015155,2]
[396490261,1764999716333,-195.0,0.00015155,2]
[396490262,1764999716367,-300.0,0.00015162,2]
[396490263,1764999716398,-164.65002493,0.00015172,2]
[396490264,1764999716430,-610.0,0.00015173,2]
[396490265,1764999716461,-300.0,0.00015173,2]
[396490266,1764999718575,-1200.0,0.00015173,2]
[396490267,1764999721760,-1391.21,0.00015174,2]
[396490268,1764999724855,-2782.42,0.00015174,2]
[396490269,1764999753551,1000.0,0.00014948,2]
[396490270,1764999789249,-399.89700004,0.00015098,2]
[396490275,1764999933027,9200.21599992,0.00014748,2]
[396490276,1764999933052,316.38400008,0.00014748,2]
[396490277,1764999934141,174.67,0.00025,120]
[396490283,1764999992371,3181.93,0.00014723,2]
[396490284,1765000019952,200.0,0.00014726,2]
[396490286,1765000050149,-4435.17,0.00015174,2]